[Event "MČR družstev mladších žáků 2024"]
[Site "Harrachov, Czech Republic"]
[Date "2024.06.15"]
[Round "6.11"]
[White "Lackova Lucie"]
[Black "Polacek Matous"]
[Result "1-0"]
[TimeControl "25+10"]
[WhiteFideId "23731800"]
[BlackFideId "23760435"]
[WhiteElo "1601"]
[BlackElo "1152"]

1. e4 {[%clk 00:25:19]} {[%emt 00:39:21]} e5 {[%clk 00:25:17]} {[%emt
00:00:03]} 2. Nf3 {[%clk 00:25:28]} {[%emt 00:00:01]} Nc6 {[%clk 00:25:25]}
{[%emt 00:00:02]} 3. d4 {[%clk 00:25:36]} {[%emt 00:00:02]} exd4 {[%clk
00:25:31]} {[%emt 00:00:04]} 4. Nxd4 {[%clk 00:25:44]} {[%emt 00:00:03]} d6
{[%clk 00:25:35]} {[%emt 00:00:06]} 5. Nc3 {[%clk 00:25:40]} {[%emt 00:00:14]}
Nf6 {[%clk 00:25:30]} {[%emt 00:00:15]} 6. Bg5 {[%clk 00:25:29]} {[%emt
00:00:21]} Be7 {[%clk 00:25:32]} {[%emt 00:00:08]} 7. Bb5 {[%clk 00:24:49]}
{[%emt 00:00:51]} Bd7 {[%clk 00:25:33]} {[%emt 00:00:08]} 8. O-O {[%clk
00:23:53]} {[%emt 00:01:07]} h6 {[%clk 00:25:08]} {[%emt 00:00:34]} 9. Bh4
{[%clk 00:23:45]} {[%emt 00:00:18]} O-O {[%clk 00:24:26]} {[%emt 00:00:52]} 10.
Be2 {[%clk 00:22:26]} {[%emt 00:01:28]} Nxe4 {[%clk 00:21:48]} {[%emt
00:02:48]} 11. Bxe7 {[%clk 00:18:09]} {[%emt 00:04:28]} Qxe7 {[%clk 00:21:51]}
{[%emt 00:00:07]} 12. Nxe4 {[%clk 00:14:29]} {[%emt 00:03:50]} Qxe4 {[%clk
00:21:51]} {[%emt 00:00:08]} 13. Nf3 {[%clk 00:13:23]} {[%emt 00:01:17]} Qg6
{[%clk 00:19:46]} {[%emt 00:02:12]} 14. Bd3 {[%clk 00:12:54]} {[%emt 00:00:42]}
Qf6 {[%clk 00:19:41]} {[%emt 00:00:14]} 15. c3 {[%clk 00:12:37]} {[%emt
00:00:29]} Rfe8 {[%clk 00:19:01]} {[%emt 00:00:48]} 16. h3 {[%clk 00:12:29]}
{[%emt 00:00:19]} Ne5 {[%clk 00:18:23]} {[%emt 00:00:45]} 17. Nxe5 {[%clk
00:12:12]} {[%emt 00:00:31]} Rxe5 {[%clk 00:18:19]} {[%emt 00:00:12]} 18. Re1
{[%clk 00:08:54]} {[%emt 00:03:29]} Rg5 {[%clk 00:15:44]} {[%emt 00:02:42]} 19.
Re3 {[%clk 00:07:56]} {[%emt 00:01:11]} Bc6 {[%clk 00:14:27]} {[%emt 00:01:25]}
20. Be4 {[%clk 00:05:47]} {[%emt 00:02:20]} Bxe4 {[%clk 00:13:24]} {[%emt
00:01:12]} 21. Rxe4 {[%clk 00:05:49]} {[%emt 00:00:09]} Qf5 {[%clk 00:12:58]}
{[%emt 00:00:32]} 22. Re3 {[%clk 00:04:38]} {[%emt 00:01:25]} Qg6 {[%clk
00:11:11]} {[%emt 00:01:57]} 23. g3 {[%clk 00:04:33]} {[%emt 00:00:16]} Qf5
{[%clk 00:10:34]} {[%emt 00:00:41]} 24. h4 {[%clk 00:03:52]} {[%emt 00:00:58]}
Rg6 {[%clk 00:10:22]} {[%emt 00:00:20]} 25. Re7 {[%clk 00:03:29]} {[%emt
00:00:28]} Rf6 {[%clk 00:09:28]} {[%emt 00:01:07]} 26. Qd2 {[%clk 00:03:07]}
{[%emt 00:00:33]} Rc8 {[%clk 00:08:54]} {[%emt 00:00:44]} 27. Rae1 {[%clk
00:02:50]} {[%emt 00:00:27]} Re6 {[%clk 00:07:48]} {[%emt 00:01:15]} 28. R7xe6
{[%clk 00:02:22]} {[%emt 00:00:40]} fxe6 {[%clk 00:07:51]} {[%emt 00:00:06]} 29.
Qd4 {[%clk 00:02:06]} {[%emt 00:00:26]} b6 {[%clk 00:06:06]} {[%emt 00:01:55]}
30. Qc4 {[%clk 00:01:53]} {[%emt 00:00:19]} d5 {[%clk 00:05:09]} {[%emt
00:01:12]} 31. Qc6 {[%clk 00:01:48]} {[%emt 00:00:08]} Rf8 {[%clk 00:03:32]}
{[%emt 00:01:53]} 32. Qxe6+ {[%clk 00:01:41]} {[%emt 00:00:17]} Qxe6 {[%clk
00:03:25]} {[%emt 00:00:16]} 33. Rxe6 {[%clk 00:01:50]} {[%emt 00:00:02]} Kf7
{[%clk 00:03:06]} {[%emt 00:00:28]} 34. Rc6 {[%clk 00:01:23]} {[%emt 00:00:35]}
Rc8 {[%clk 00:03:01]} {[%emt 00:00:16]} 35. Kf1 {[%clk 00:01:21]} {[%emt
00:00:13]} Ke7 {[%clk 00:02:57]} {[%emt 00:00:12]} 36. Ke2 {[%clk 00:01:16]}
{[%emt 00:00:18]} Kd7 {[%clk 00:03:03]} {[%emt 00:00:03]} 37. Rg6 {[%clk
00:01:21]} {[%emt 00:00:03]} Rg8 {[%clk 00:02:38]} {[%emt 00:00:37]} 38. Kd3
{[%clk 00:01:17]} {[%emt 00:00:16]} c5 {[%clk 00:02:18]} {[%emt 00:00:29]} 39.
b4 {[%clk 00:00:59]} {[%emt 00:00:29]} cxb4 {[%clk 00:02:10]} {[%emt 00:00:18]}
40. cxb4 {[%clk 00:01:08]} {[%emt 00:00:01]} Kc7 {[%clk 00:02:00]} {[%emt
00:00:19]} 41. Kd4 {[%clk 00:01:16]} {[%emt 00:00:03]} Kb7 {[%clk 00:02:01]}
{[%emt 00:00:08]} 42. Kxd5 {[%clk 00:01:18]} {[%emt 00:00:09]} Ka6 {[%clk
00:02:01]} {[%emt 00:00:08]} 43. a4 {[%clk 00:00:47]} {[%emt 00:00:42]} Rf8
{[%clk 00:00:55]} {[%emt 00:01:14]} 44. f4 {[%clk 00:00:49]} {[%emt 00:00:10]}
Rd8+ {[%clk 00:00:44]} {[%emt 00:00:20]} 45. Kc4 {[%clk 00:00:46]} {[%emt
00:00:14]} Rc8+ {[%clk 00:00:32]} {[%emt 00:00:22]} 46. Kb3 {[%clk 00:00:51]}
{[%emt 00:00:05]} Re8 {[%clk 00:00:38]} {[%emt 00:00:03]} 47. Rxg7 {[%clk
00:00:47]} {[%emt 00:00:15]} Re3+ {[%clk 00:00:45]} {[%emt 00:00:03]} 48. Kb2
{[%clk 00:00:54]} {[%emt 00:00:02]} Re2+ {[%clk 00:00:48]} {[%emt 00:00:07]} 49.
Kc3 {[%clk 00:00:55]} {[%emt 00:00:09]} Ra2 {[%clk 00:00:48]} {[%emt 00:00:08]}
50. b5+ {[%clk 00:00:56]} {[%emt 00:00:11]} Ka5 {[%clk 00:00:46]} {[%emt
00:00:11]} 51. Rxa7# {[%clk 00:01:03]} {[%emt 00:00:03]} 1-0



[ePGN "0.1;DGT LiveChess/2.2.6"]

[Event "MČR družstev mladších žáků 2024"]
[Site "Harrachov, Czech Republic"]
[Date "2024.06.15"]
[Round "6.13"]
[White "Kroulik Stepan"]
[Black "Velim Vojtech"]
[Result "0-1"]
[TimeControl "25+10"]
[WhiteFideId "23725460"]
[BlackFideId "23749407"]
[WhiteElo "1370"]
[BlackElo "1814"]

1. e4 {[%clk 00:25:18]} {[%emt 00:00:02]} c6 {[%clk 00:25:20]} {[%emt
00:00:01]} 2. Nf3 {[%clk 00:25:25]} {[%emt 00:00:03]} d5 {[%clk 00:25:29]}
{[%emt 00:00:01]} 3. exd5 {[%clk 00:25:33]} cxd5 {[%clk 00:25:38]} 4. Nc3
{[%clk 00:25:40]} {[%emt 00:00:03]} Nc6 {[%clk 00:25:38]} {[%emt 00:00:10]} 5.
d4 {[%clk 00:25:36]} {[%emt 00:00:14]} Bg4 {[%clk 00:25:47]} {[%emt 00:00:01]}
6. Bb5 {[%clk 00:25:42]} {[%emt 00:00:04]} e6 {[%clk 00:25:49]} {[%emt
00:00:08]} 7. h3 {[%clk 00:25:40]} {[%emt 00:00:12]} Bxf3 {[%clk 00:25:43]}
{[%emt 00:00:16]} 8. Qxf3 {[%clk 00:25:42]} {[%emt 00:00:08]} Nf6 {[%clk
00:25:52]} {[%emt 00:00:01]} 9. Be3 {[%clk 00:25:39]} {[%emt 00:00:13]} Bd6
{[%clk 00:25:51]} {[%emt 00:00:11]} 10. O-O {[%clk 00:25:37]} {[%emt 00:00:12]}
a6 {[%clk 00:25:59]} {[%emt 00:00:02]} 11. Bxc6+ {[%clk 00:25:41]} {[%emt
00:00:06]} bxc6 {[%clk 00:26:08]} {[%emt 00:00:02]} 12. b3 {[%clk 00:25:29]}
{[%emt 00:00:22]} O-O {[%clk 00:25:43]} {[%emt 00:00:34]} 13. Bg5 {[%clk
00:24:53]} {[%emt 00:00:46]} Be7 {[%clk 00:25:39]} {[%emt 00:00:14]} 14. Bxf6
{[%clk 00:24:28]} {[%emt 00:00:35]} Bxf6 {[%clk 00:25:47]} {[%emt 00:00:02]} 15.
Ne2 {[%clk 00:24:37]} {[%emt 00:00:01]} c5 {[%clk 00:25:48]} {[%emt 00:00:09]}
16. Rad1 {[%clk 00:24:23]} {[%emt 00:00:24]} Qc7 {[%clk 00:25:28]} {[%emt
00:00:30]} 17. c3 {[%clk 00:23:01]} {[%emt 00:01:32]} c4 {[%clk 00:25:17]}
{[%emt 00:00:21]} 18. b4 {[%clk 00:23:02]} {[%emt 00:00:09]} a5 {[%clk
00:24:55]} {[%emt 00:00:32]} 19. a3 {[%clk 00:22:56]} {[%emt 00:00:17]} axb4
{[%clk 00:24:51]} {[%emt 00:00:14]} 20. axb4 {[%clk 00:23:02]} {[%emt
00:00:04]} Ra2 {[%clk 00:24:43]} {[%emt 00:00:18]} 21. Qg3 {[%clk 00:21:08]}
{[%emt 00:02:05]} Be5 {[%clk 00:22:11]} {[%emt 00:02:42]} 22. f4 {[%clk
00:20:10]} {[%emt 00:01:07]} Bd6 {[%clk 00:20:57]} {[%emt 00:01:24]} 23. Qg4
{[%clk 00:19:17]} {[%emt 00:01:03]} f5 {[%clk 00:20:35]} {[%emt 00:00:32]} 24.
Qf3 {[%clk 00:19:05]} {[%emt 00:00:23]} Rfa8 {[%clk 00:20:40]} {[%emt
00:00:05]} 25. Ng3 {[%clk 00:16:55]} {[%emt 00:02:20]} R8a3 {[%clk 00:20:06]}
{[%emt 00:00:45]} 26. Rfe1 {[%clk 00:14:02]} {[%emt 00:03:03]} Qd7 {[%clk
00:19:54]} {[%emt 00:00:22]} 27. Nxf5 {[%clk 00:11:32]} {[%emt 00:02:41]} Bxb4
{[%clk 00:18:04]} {[%emt 00:02:00]} 28. Nh4 {[%clk 00:08:06]} {[%emt 00:03:35]}
Bxc3 {[%clk 00:17:00]} {[%emt 00:01:15]} 29. Re3 {[%clk 00:07:53]} {[%emt
00:00:22]} Ra1 {[%clk 00:16:32]} {[%emt 00:00:38]} 30. Kh2 {[%clk 00:06:35]}
{[%emt 00:01:28]} Rxd1 {[%clk 00:16:16]} {[%emt 00:00:26]} 31. Qxd1 {[%clk
00:06:38]} {[%emt 00:00:08]} Ra1 {[%clk 00:16:19]} {[%emt 00:00:06]} 32. Qg4
{[%clk 00:05:54]} {[%emt 00:00:54]} Bxd4 {[%clk 00:16:23]} {[%emt 00:00:06]} 33.
Rxe6 {[%clk 00:05:29]} {[%emt 00:00:35]} Bg1+ {[%clk 00:16:01]} {[%emt
00:00:33]} 34. Kg3 {[%clk 00:05:11]} {[%emt 00:00:28]} Ra3+ {[%clk 00:15:59]}
{[%emt 00:00:11]} 35. Nf3 {[%clk 00:05:15]} {[%emt 00:00:06]} c3 {[%clk
00:15:43]} {[%emt 00:00:27]} 36. Kh4 {[%clk 00:05:07]} {[%emt 00:00:17]} Bf2+
{[%clk 00:15:33]} {[%emt 00:00:21]} 37. g3 {[%clk 00:05:14]} {[%emt 00:00:03]}
c2 {[%clk 00:15:25]} {[%emt 00:00:18]} 38. Ne5 {[%clk 00:04:53]} {[%emt
00:00:32]} Qd8+ {[%clk 00:15:34]} {[%emt 00:00:01]} 39. Kh5 {[%clk 00:04:40]}
{[%emt 00:00:22]} Rxg3 {[%clk 00:12:48]} {[%emt 00:02:56]} 40. Qf5 {[%clk
00:03:54]} {[%emt 00:00:56]} Rxh3+ {[%clk 00:12:19]} {[%emt 00:00:39]} 41. Qxh3
{[%clk 00:03:56]} {[%emt 00:00:08]} c1=Q {[%clk 00:12:10]} {[%emt 00:00:19]} 42.
Rc6 {[%clk 00:01:49]} {[%emt 00:02:17]} Qd1+ {[%clk 00:11:46]} {[%emt
00:00:34]} 43. Nf3 {[%clk 00:01:31]} {[%emt 00:00:28]} Qe8+ {[%clk 00:11:37]}
{[%emt 00:00:19]} 44. Kg4 {[%clk 00:01:20]} {[%emt 00:00:21]} Qxc6 {[%clk
00:11:15]} {[%emt 00:00:33]} 45. Qh5 {[%clk 00:01:10]} {[%emt 00:00:20]} Qe6+
{[%clk 00:11:10]} {[%emt 00:00:15]} 46. f5 {[%clk 00:00:43]} {[%emt 00:00:37]}
Qe4+ {[%clk 00:11:13]} {[%emt 00:00:07]} 47. Kg5 {[%clk 00:00:48]} {[%emt
00:00:05]} Be3# {[%clk 00:11:09]} {[%emt 00:00:13]} 0-1



[ePGN "0.1;DGT LiveChess/2.2.6"]

[Event "MČR družstev mladších žáků 2024"]
[Site "Harrachov, Czech Republic"]
[Date "2024.06.15"]
[Round "6.14"]
[White "Kala Jakub"]
[Black "Zika Miroslav"]
[Result "1-0"]
[TimeControl "25+10"]
[WhiteFideId "23753897"]
[BlackFideId "23746610"]
[WhiteElo "1657"]
[BlackElo "1311"]

1. Nf3 {[%clk 00:25:18]} {[%emt 00:00:02]} c5 {[%clk 00:25:14]} {[%emt
00:00:07]} 2. c4 {[%clk 00:25:26]} {[%emt 00:00:02]} Nc6 {[%clk 00:25:23]}
{[%emt 00:00:01]} 3. Nc3 {[%clk 00:25:35]} Nf6 {[%clk 00:25:32]} {[%emt
00:00:01]} 4. e3 {[%clk 00:25:42]} {[%emt 00:00:02]} d6 {[%clk 00:25:32]}
{[%emt 00:00:10]} 5. d4 {[%clk 00:25:51]} {[%emt 00:00:02]} cxd4 {[%clk
00:25:23]} {[%emt 00:00:19]} 6. exd4 {[%clk 00:25:59]} {[%emt 00:00:01]} g6
{[%clk 00:25:21]} {[%emt 00:00:13]} 7. d5 {[%clk 00:25:47]} {[%emt 00:00:22]}
Ne5 {[%clk 00:25:17]} {[%emt 00:00:14]} 8. Nxe5 {[%clk 00:25:13]} {[%emt
00:00:44]} dxe5 {[%clk 00:25:26]} {[%emt 00:00:01]} 9. Bd3 {[%clk 00:24:04]}
{[%emt 00:01:18]} Bg7 {[%clk 00:25:34]} {[%emt 00:00:03]} 10. O-O {[%clk
00:24:07]} {[%emt 00:00:06]} O-O {[%clk 00:25:29]} {[%emt 00:00:15]} 11. Re1
{[%clk 00:23:22]} {[%emt 00:00:55]} Qc7 {[%clk 00:25:06]} {[%emt 00:00:33]} 12.
h3 {[%clk 00:22:30]} {[%emt 00:01:03]} Bd7 {[%clk 00:25:11]} {[%emt 00:00:05]}
13. Qc2 {[%clk 00:21:25]} {[%emt 00:01:15]} e6 {[%clk 00:23:36]} {[%emt
00:01:45]} 14. Be3 {[%clk 00:17:39]} {[%emt 00:03:56]} Rfc8 {[%clk 00:23:12]}
{[%emt 00:00:34]} 15. Rac1 {[%clk 00:16:32]} {[%emt 00:01:17]} b6 {[%clk
00:23:13]} {[%emt 00:00:10]} 16. Qd2 {[%clk 00:15:41]} {[%emt 00:01:01]} Qd6
{[%clk 00:20:28]} {[%emt 00:02:55]} 17. dxe6 {[%clk 00:12:56]} {[%emt
00:02:55]} Bxe6 {[%clk 00:20:08]} {[%emt 00:00:29]} 18. Qe2 {[%clk 00:12:47]}
{[%emt 00:00:19]} Rd8 {[%clk 00:19:45]} {[%emt 00:00:33]} 19. Red1 {[%clk
00:12:39]} {[%emt 00:00:19]} Qe7 {[%clk 00:19:03]} {[%emt 00:00:52]} 20. Bg5
{[%clk 00:12:03]} {[%emt 00:00:45]} Qc7 {[%clk 00:17:43]} {[%emt 00:01:29]} 21.
Ne4 {[%clk 00:10:57]} {[%emt 00:01:17]} Qe7 {[%clk 00:14:03]} {[%emt 00:03:50]}
22. Qf3 {[%clk 00:09:42]} {[%emt 00:01:24]} Bf5 {[%clk 00:14:09]} {[%emt
00:00:05]} 23. Bxf6 {[%clk 00:08:45]} {[%emt 00:01:07]} Bxf6 {[%clk 00:13:57]}
{[%emt 00:00:22]} 24. Nxf6+ {[%clk 00:08:45]} {[%emt 00:00:10]} Qxf6 {[%clk
00:13:50]} {[%emt 00:00:17]} 25. g4 {[%clk 00:08:10]} {[%emt 00:00:45]} Qg5
{[%clk 00:13:27]} {[%emt 00:00:33]} 26. Bxf5 {[%clk 00:07:26]} {[%emt
00:00:53]} gxf5 {[%clk 00:13:25]} {[%emt 00:00:12]} 27. Qxf5 {[%clk 00:07:21]}
{[%emt 00:00:16]} Qxf5 {[%clk 00:13:29]} {[%emt 00:00:06]} 28. gxf5 {[%clk
00:07:30]} Kg7 {[%clk 00:13:16]} {[%emt 00:00:23]} 29. Rxd8 {[%clk 00:04:50]}
{[%emt 00:02:50]} Rxd8 {[%clk 00:13:25]} {[%emt 00:00:01]} 30. Rc3 {[%clk
00:04:59]} {[%emt 00:00:01]} Kf6 {[%clk 00:13:25]} {[%emt 00:00:10]} 31. c5
{[%clk 00:04:12]} {[%emt 00:00:57]} bxc5 {[%clk 00:13:31]} {[%emt 00:00:04]} 32.
Rxc5 {[%clk 00:04:21]} Rd7 {[%clk 00:13:27]} {[%emt 00:00:14]} 33. Kg2 {[%clk
00:02:22]} {[%emt 00:02:09]} Kxf5 {[%clk 00:13:35]} {[%emt 00:00:02]} 34. Kg3
{[%clk 00:02:09]} {[%emt 00:00:23]} f6 {[%clk 00:13:25]} {[%emt 00:00:20]} 35.
Rc8 {[%clk 00:02:06]} {[%emt 00:00:13]} Rg7+ {[%clk 00:13:20]} {[%emt
00:00:15]} 36. Kf3 {[%clk 00:01:55]} {[%emt 00:00:21]} Rd7 {[%clk 00:13:16]}
{[%emt 00:00:13]} 37. Rf8 {[%clk 00:01:41]} {[%emt 00:00:24]} e4+ {[%clk
00:13:00]} {[%emt 00:00:27]} 38. Ke2 {[%clk 00:01:09]} {[%emt 00:00:42]} Rc7
{[%clk 00:12:59]} {[%emt 00:00:10]} 39. Ke3 {[%clk 00:00:52]} {[%emt 00:00:27]}
Rd7 {[%clk 00:12:57]} {[%emt 00:00:13]} 40. Ke2 {[%clk 00:00:43]} {[%emt
00:00:18]} Rc7 {[%clk 00:13:03]} {[%emt 00:00:04]} 41. Rb8 {[%emt 00:00:13]}
Kf4 {[%clk 00:12:59]} {[%emt 00:00:13]} 42. Rb3 {[%clk 00:00:14]} {[%emt
00:00:37]} f5 {[%clk 00:13:02]} {[%emt 00:00:08]} 43. a4 {[%clk 00:00:12]}
{[%emt 00:00:11]} Rd7 {[%clk 00:12:55]} {[%emt 00:00:17]} 44. Rc3 {[%clk
00:00:17]} {[%emt 00:00:05]} Rb7 {[%clk 00:13:02]} {[%emt 00:00:03]} 45. b3
{[%clk 00:00:22]} {[%emt 00:00:05]} h5 {[%clk 00:13:07]} {[%emt 00:00:06]} 46.
Kd2 {[%clk 00:00:18]} {[%emt 00:00:14]} Rd7+ {[%clk 00:13:10]} {[%emt
00:00:07]} 47. Ke2 {[%clk 00:00:27]} {[%emt 00:00:01]} Rb7 {[%clk 00:13:09]}
{[%emt 00:00:10]} 48. Re3 {[%clk 00:00:17]} {[%emt 00:00:20]} Rc7 {[%clk
00:13:10]} {[%emt 00:00:09]} 49. Kd2 {[%clk 00:00:24]} {[%emt 00:00:02]} h4
{[%clk 00:13:12]} {[%emt 00:00:09]} 50. b4 {[%clk 00:00:30]} {[%emt 00:00:04]}
Rc4 {[%clk 00:13:13]} {[%emt 00:00:09]} 51. Rb3 {[%clk 00:00:37]} {[%emt
00:00:03]} Ke5 {[%clk 00:12:56]} {[%emt 00:00:27]} 52. a5 {[%clk 00:00:28]}
{[%emt 00:00:19]} Rc7 {[%clk 00:12:41]} {[%emt 00:00:24]} 53. b5 {[%clk
00:00:34]} {[%emt 00:00:04]} f4 {[%clk 00:12:43]} {[%emt 00:00:08]} 54. b6
{[%clk 00:00:25]} {[%emt 00:00:19]} axb6 {[%clk 00:12:50]} {[%emt 00:00:02]} 55.
axb6 {[%clk 00:00:24]} {[%emt 00:00:12]} Rb7 {[%clk 00:12:59]} {[%emt
00:00:01]} 56. Rb4 {[%clk 00:00:17]} {[%emt 00:00:15]} Kd5 {[%clk 00:12:47]}
{[%emt 00:00:24]} 57. Kc3 {[%clk 00:00:13]} {[%emt 00:00:13]} e3 {[%clk
00:09:40]} {[%emt 00:03:18]} 58. fxe3 fxe3 {[%clk 00:09:49]} 59. Kd3 {[%clk
00:00:31]} {[%emt 00:00:01]} Kc5 {[%clk 00:09:25]} {[%emt 00:00:35]} 60. Rxh4
{[%clk 00:00:17]} {[%emt 00:00:24]} Kxb6 {[%clk 00:09:08]} {[%emt 00:00:26]} 61.
Rb4+ {[%clk 00:00:13]} {[%emt 00:00:14]} Kc6 {[%clk 00:09:14]} {[%emt
00:00:05]} 62. Rxb7 {[%clk 00:00:22]} {[%emt 00:00:01]} Kxb7 {[%clk 00:09:23]}
63. h4 {[%clk 00:00:32]} {[%emt 00:00:01]} Kc7 {[%clk 00:09:21]} {[%emt
00:00:11]} 64. h5 {[%clk 00:00:41]} Kd7 {[%clk 00:09:30]} 65. h6 {[%clk
00:00:51]} Ke7 {[%clk 00:08:45]} {[%emt 00:00:55]} 66. h7 {[%clk 00:00:59]}
{[%emt 00:00:02]} e2 {[%clk 00:08:53]} {[%emt 00:00:02]} 67. Kxe2 {[%clk
00:01:07]} {[%emt 00:00:02]} Kf7 {[%clk 00:09:02]} 68. h8=Q {[%clk 00:01:13]}
{[%emt 00:00:03]} Kg6 {[%clk 00:09:11]} {[%emt 00:00:01]} 69. Qf8 {[%clk
00:01:18]} {[%emt 00:00:05]} Kh7 {[%clk 00:09:19]} {[%emt 00:00:02]} 70. Qf6
{[%clk 00:01:20]} {[%emt 00:00:08]} Kg8 {[%clk 00:09:28]} {[%emt 00:00:02]} 71.
Qe7 {[%clk 00:01:29]} {[%emt 00:00:01]} Kh8 {[%clk 00:09:37]} {[%emt 00:00:01]}
72. Kf3 {[%clk 00:01:38]} {[%emt 00:00:01]} Kg8 {[%clk 00:09:46]} {[%emt
00:00:01]} 73. Kg4 {[%clk 00:01:47]} Kh8 {[%clk 00:09:55]} {[%emt 00:00:01]} 74.
Kg5 {[%clk 00:01:56]} Kg8 {[%clk 00:10:05]} 75. Kg6 {[%clk 00:02:05]} {[%emt
00:00:01]} Kh8 {[%clk 00:10:14]} 76. Qg7# {[%clk 00:02:14]} 1-0



[ePGN "0.1;DGT LiveChess/2.2.6"]

[Event "MČR družstev mladších žáků 2024"]
[Site "Harrachov, Czech Republic"]
[Date "2024.06.15"]
[Round "6.15"]
[White "Svoboda Petr"]
[Black "Levchenko Alisa"]
[Result "1/2-1/2"]
[TimeControl "25+10"]
[WhiteFideId "23771550"]
[BlackFideId "23760311"]
[WhiteElo "1261"]
[BlackElo "1302"]

1. e4 {[%clk 00:25:17]} {[%emt 00:00:02]} e6 {[%clk 00:25:18]} {[%emt
00:00:02]} 2. d4 {[%clk 00:25:03]} {[%emt 00:00:24]} d5 {[%clk 00:25:26]}
{[%emt 00:00:02]} 3. exd5 {[%clk 00:25:07]} {[%emt 00:00:07]} exd5 {[%clk
00:25:34]} {[%emt 00:00:02]} 4. Nf3 {[%clk 00:25:15]} {[%emt 00:00:02]} Bf5
{[%clk 00:25:28]} {[%emt 00:00:15]} 5. c3 {[%clk 00:24:41]} {[%emt 00:00:44]}
c6 {[%clk 00:25:32]} {[%emt 00:00:06]} 6. Be2 {[%clk 00:24:34]} {[%emt
00:00:18]} Bd6 {[%clk 00:25:31]} {[%emt 00:00:11]} 7. O-O {[%clk 00:24:32]}
{[%emt 00:00:12]} Nf6 {[%clk 00:25:19]} {[%emt 00:00:21]} 8. Bg5 {[%clk
00:24:36]} {[%emt 00:00:04]} Nbd7 {[%clk 00:25:18]} {[%emt 00:00:11]} 9. Nbd2
{[%clk 00:24:45]} {[%emt 00:00:02]} h6 {[%clk 00:25:22]} {[%emt 00:00:06]} 10.
Bh4 {[%clk 00:24:50]} {[%emt 00:00:05]} O-O {[%clk 00:25:20]} {[%emt 00:00:12]}
11. Re1 {[%clk 00:24:30]} {[%emt 00:00:31]} Qc7 {[%clk 00:25:16]} {[%emt
00:00:13]} 12. Bg3 {[%clk 00:21:51]} {[%emt 00:02:49]} Ne4 {[%clk 00:22:59]}
{[%emt 00:02:27]} 13. Bxd6 {[%clk 00:21:01]} {[%emt 00:01:00]} Qxd6 {[%clk
00:22:41]} {[%emt 00:00:28]} 14. Nxe4 {[%clk 00:17:09]} {[%emt 00:04:02]} Bxe4
{[%clk 00:22:47]} {[%emt 00:00:04]} 15. Bd3 {[%clk 00:16:31]} {[%emt 00:00:49]}
Nf6 {[%clk 00:22:04]} {[%emt 00:00:52]} 16. h3 {[%clk 00:14:28]} {[%emt
00:02:13]} Rfe8 {[%clk 00:19:28]} {[%emt 00:02:46]} 17. Re3 {[%clk 00:11:46]}
{[%emt 00:02:52]} Re6 {[%clk 00:19:06]} {[%emt 00:00:33]} 18. Qd2 {[%clk
00:08:47]} {[%emt 00:03:10]} Rae8 {[%clk 00:18:37]} {[%emt 00:00:38]} 19. Ne5
{[%clk 00:08:12]} {[%emt 00:00:45]} Bxd3 {[%clk 00:16:22]} {[%emt 00:02:25]} 20.
Qxd3 {[%clk 00:07:35]} {[%emt 00:00:48]} Nd7 {[%clk 00:15:51]} {[%emt
00:00:41]} 21. Nxd7 {[%clk 00:06:48]} {[%emt 00:00:57]} Rxe3 {[%clk 00:15:42]}
{[%emt 00:00:19]} 22. fxe3 {[%clk 00:06:50]} {[%emt 00:00:08]} Qxd7 {[%clk
00:15:50]} {[%emt 00:00:02]} 23. Rf1 {[%clk 00:05:49]} {[%emt 00:00:58]} Re4
{[%clk 00:14:59]} {[%emt 00:01:13]} 24. Rf4 {[%clk 00:05:20]} {[%emt 00:00:38]}
Qe6 {[%clk 00:14:25]} {[%emt 00:00:44]} 25. Rf3 {[%clk 00:04:30]} {[%emt
00:01:00]} f5 {[%clk 00:12:22]} {[%emt 00:02:14]} 26. a4 {[%clk 00:02:58]}
{[%emt 00:01:43]} g5 {[%clk 00:11:33]} {[%emt 00:00:57]} 27. b4 {[%clk
00:02:44]} {[%emt 00:00:24]} h5 {[%clk 00:10:10]} {[%emt 00:01:33]} 28. Kf2
{[%clk 00:01:24]} {[%emt 00:01:31]} g4 {[%clk 00:09:58]} {[%emt 00:00:21]} 29.
hxg4 {[%clk 00:01:04]} {[%emt 00:00:30]} hxg4 {[%clk 00:09:59]} {[%emt
00:00:09]} 30. Rf4 {[%clk 00:00:56]} {[%emt 00:00:18]} 1/2-1/2



[ePGN "0.1;DGT LiveChess/2.2.6"]